fUSD/lending_fUSD_20251027
["ID","MTS","AMOUNT","RATE_DAILY","PERIOD"]
[392490890,1761558641384,-293.3888,0.0004,120]
[392490891,1761558641393,-500.0,0.0004,120]
[392490892,1761558641402,-958.0,0.0004,7]
[392490893,1761558641411,-2131.56274419,0.00040047,2]
[392490894,1761558641419,-503.0,0.00040168,120]
[392490895,1761558641428,-153.0,0.00040241,90]
[392490896,1761558641441,-153.0,0.00040241,90]
[392490897,1761558641450,-153.0,0.00040241,90]
[392490898,1761558641459,-153.0,0.00040241,90]
[392490899,1761558641467,-9587.76922337,0.00040293,2]
[392490900,1761558641476,-1000.0,0.00040356,5]
[392490901,1761558641485,-1234.0,0.000404,2]
[392490902,1761558641499,-153.0,0.00040426,90]
[392490903,1761558641508,-153.0,0.00040426,90]
[392490904,1761558641517,-153.0,0.00040426,90]
[392490905,1761558641526,-153.0,0.00040426,90]
[392490906,1761558641535,-153.0,0.00040426,90]
[392490907,1761558641544,-153.0,0.00040426,90]
[392490908,1761558641553,-153.0,0.00040426,90]
[392490909,1761558641561,-153.0,0.00040426,90]
[392490910,1761558641571,-153.0,0.00040426,90]
[392490911,1761558641581,-153.0,0.00040426,90]
[392490912,1761558641592,-153.0,0.00040426,90]
[392490913,1761558641603,-153.0,0.00040426,90]
[392490914,1761558641612,-608.38,0.00040438,2]
[392490915,1761558641622,-158.70334469,0.00040438,4]
[392490916,1761558641631,-150.0,0.00040438,4]
[392490917,1761558641639,-165.11466938,0.00040438,4]
[392490918,1761558641648,-250.0,0.00040449,2]
[392490919,1761558641657,-18227.2054864,0.00040457,3]
[392490920,1761558641666,-1093.0,0.00040467,5]
[392490921,1761558641675,-2000.0,0.00040467,120]
[392490922,1761558641687,-2000.0,0.00040467,120]
[392490923,1761558641696,-2000.0,0.00040467,120]
[392490924,1761558641706,-2000.0,0.00040467,120]
[392490925,1761558641714,-2000.0,0.00040467,120]
[392490926,1761558641723,-2000.0,0.00040467,120]
[392490927,1761558641732,-2000.0,0.00040467,120]
[392490928,1761558641741,-2000.0,0.00040467,120]
[392490929,1761558641751,-2000.0,0.00040467,120]
[392490930,1761558641760,-2000.0,0.00040467,120]
[392490931,1761558641770,-2000.0,0.00040467,120]
[392490932,1761558641780,-2000.0,0.00040467,120]
[392490933,1761558641789,-2000.0,0.00040467,120]
[392490934,1761558641799,-2000.0,0.00040467,120]
[392490935,1761558641809,-2000.0,0.00040467,120]
[392490936,1761558641818,-2000.0,0.00040467,120]
[392490937,1761558641827,-2000.0,0.00040467,120]
[392490938,1761558641836,-2000.0,0.00040467,120]
[392490939,1761558641845,-2000.0,0.00040467,120]
[392490940,1761558641855,-2000.0,0.00040467,120]
[392490941,1761558641864,-640.694,0.00040467,120]
[392490942,1761558641883,-150.85210682,0.000405,120]
[392490943,1761558641895,-18227.2054864,0.00040604,3]
[392490944,1761558641904,-6474.58,0.00040614,2]
[392490945,1761558641914,-168.0,0.00040644,2]
[392490946,1761558641923,-500.0,0.0004065,30]
[392490947,1761558641933,-500.0,0.0004065,30]
[392490948,1761558641944,-551.45798569,0.0004065,30]
[392490949,1761558641954,-500.0,0.0004065,30]
[392490950,1761558641963,-500.0,0.0004065,30]
[392490951,1761558641973,-500.0,0.0004065,30]
[392490952,1761558641983,-500.0,0.0004065,30]
[392490953,1761558641992,-855.33132468,0.0004065,30]
[392490954,1761558642002,-500.0,0.0004065,30]
[392490955,1761558642011,-505.62988337,0.0004065,30]
[392490956,1761558642021,-168.0,0.00040664,2]
[392490957,1761558642030,-168.0,0.00040732,2]
[392490958,1761558642040,-168.0,0.00040766,7]
[392490959,1761558642050,-1000.0,0.00040855,30]
[392490960,1761558642059,-1543.64962942,0.00040904,5]
[392490961,1761558642069,-166.66,0.0004099,2]
[392490962,1761558642079,-621.0,0.00041,120]
[392490963,1761558642090,-168.0,0.00041066,2]
[392490964,1761558642099,-168.0,0.00041094,2]
[392490965,1761558642109,-1000.0,0.00041095,120]
[392490966,1761558642118,-500.0,0.00041096,120]
[392490967,1761558642128,-3344.4,0.00041096,5]
[392490968,1761558642137,-421.95928523,0.000411,2]
[392490969,1761558642147,-150.0,0.00041124,30]
[392490970,1761558642156,-150.0,0.00041124,30]
[392490971,1761558642165,-504.0,0.00041168,120]
[392490972,1761558642175,-168.0,0.00041208,120]
[392490973,1761558642184,-248.0,0.00041267,120]
[392490974,1761558642200,-163.08,0.0004136,2]
[392490975,1761558642210,-1000.0,0.00041369,120]
[392490976,1761558642219,-500.0,0.0004137,120]
[392490977,1761558642228,-168.0,0.00041386,2]
[392490978,1761558642238,-168.0,0.00041564,2]
[392490979,1761558642248,-18227.2054864,0.00041599,3]
[392490980,1761558642258,-3416.0,0.00041609,2]
[392490981,1761558642268,-573.0,0.00041609,2]
[392490982,1761558642277,-2055.0,0.00041609,2]
[392490983,1761558642287,-820.0,0.00041609,2]
[392490984,1761558642299,-1594.047,0.00041609,2]
[392490985,1761558642309,-674.688,0.00041609,2]
[392490986,1761558642319,-1313.0,0.00041609,2]
[392490987,1761558642329,-820.0,0.00041609,2]
[392490988,1761558642339,-1270.0,0.00041609,2]
[392490989,1761558642348,-6587.0,0.00041609,2]
[392490990,1761558642358,-558.0,0.00041609,2]
[392490991,1761558642368,-3490.0,0.00041609,2]
[392490992,1761558642378,-6461.0,0.00041609,2]
[392490993,1761558642387,-153.7181831,0.00041626,120]
[392490994,1761558642397,-1000.0,0.00041643,120]
[392490995,1761558642408,-500.0,0.00041644,120]
[392490996,1761558642418,-168.0,0.00041659,2]
[392490997,1761558642428,-152.0,0.00041809,5]
[392490998,1761558642442,-500.0,0.00041821,120]
[392490999,1761558642455,-379.0,0.00041866,2]
[392491000,1761558642465,-279.90170673,0.00041917,120]
[392491001,1761558642475,-500.0,0.00041918,120]
[392491002,1761558642485,-200.0,0.00041921,120]
[392491003,1761558642495,-378.0,0.00041963,7]
[392491004,1761558642507,-153.7181831,0.00042132,120]
[392491005,1761558642516,-168.0,0.00042151,2]
[392491006,1761558642530,-500.0,0.00042192,120]
[392491007,1761558642540,-168.0,0.00042197,120]
[392491008,1761558642549,-205.95089584,0.00042207,120]
[392491009,1761558642559,-150.0,0.00042228,2]
[392491010,1761558642569,-166.66,0.00042343,2]
[392491011,1761558642578,-378.0,0.00042377,2]
[392491012,1761558642588,-150.0,0.00042393,2]
[392491013,1761558642598,-378.0,0.00042422,120]
[392491014,1761558642607,-500.0,0.00042466,120]
[392491015,1761558642617,-168.0,0.00042471,2]
[392491016,1761558642627,-153.7181831,0.00042638,120]
[392491017,1761558642637,-500.0,0.0004274,120]
[392491018,1761558642646,-500.0,0.00042815,120]
[392491019,1761558642656,-150.0,0.00042898,30]
[392491020,1761558642666,-150.0,0.00042929,2]
[392491021,1761558642675,-378.0,0.00042984,2]
[392491022,1761558642685,-500.0,0.00043014,120]
[392491023,1761558642700,-168.0,0.00043106,2]
[392491024,1761558642709,-168.0,0.00043132,7]
[392491025,1761558642719,-153.7181831,0.00043144,120]
[392491026,1761558642728,-500.0,0.00043204,120]
[392491027,1761558642738,-2000.0,0.00043204,120]
[392491028,1761558642747,-519.043334,0.00043204,120]
[392491029,1761558642757,-168.0,0.00043221,2]
[392491030,1761558642767,-500.0,0.00043288,120]
[392491031,1761558642776,-200.0,0.00043362,120]
[392491032,1761558642786,-594.67662468,0.00043479,120]
[392491033,1761558642795,-1000.0,0.00043559,2]
[392491034,1761558642805,-514.29,0.00043562,120]
[392491035,1761558642814,-252.13112862,0.00043604,2]
[392491036,1761558642823,-153.7181831,0.0004365,120]
[392491037,1761558642836,-166.66,0.00043696,2]
[392491038,1761558642846,-18227.2054864,0.00043715,3]
[392491040,1761558642855,-5000.0,0.00043725,120]
[392491041,1761558642865,-12082.6902,0.00043735,2]
[392491042,1761558642874,-1000.0,0.00043735,2]
[392491043,1761558642884,-203.7,0.00043742,30]
[392491044,1761558642893,-544.16,0.00043767,30]
[392491046,1761558643042,-500.0,0.0004381,120]
[392491047,1761558643053,-36454.4109727,0.00043815,3]
[392491048,1761558643063,-28526.7806451,0.00043815,3]
[392491049,1761558643072,-18227.2054864,0.00043815,3]
[392491050,1761558643081,-72908.8219454,0.00043825,3]
[392491051,1761558643090,-71316.9516128,0.00043825,3]
[392491052,1761558643099,-2065.40715663,0.00043834,120]
[392491053,1761558643109,-500.0,0.00043834,120]
[392491054,1761558643118,-500.0,0.00043834,120]
[392491055,1761558643127,-500.0,0.00043834,120]
[392491056,1761558643136,-500.0,0.00043834,120]
[392491057,1761558643146,-179.47626802,0.00043834,120]
[392491058,1761558643155,-500.0,0.00043835,120]
[392491059,1761558643164,-500.0,0.00043835,120]
[392491060,1761558643174,-515.21,0.00043835,120]
[392491061,1761558643186,-500.0,0.00043835,120]
[392491062,1761558643200,-500.0,0.00043835,120]
[392491063,1761558643209,-500.0,0.00043835,120]
[392491064,1761558643219,-500.0,0.00043835,120]
[392491065,1761558643228,-500.0,0.00043835,120]
[392491066,1761558643237,-500.0,0.00043835,120]
[392491067,1761558643246,-500.0,0.00043835,120]
[392491068,1761558643256,-500.0,0.00043835,120]
[392491069,1761558643265,-500.0,0.00043835,120]
[392491070,1761558643275,-500.0,0.00043835,120]
[392491071,1761558643284,-500.0,0.00043835,120]
[392491072,1761558643294,-583.15,0.00043835,120]
[392491073,1761558643303,-500.0,0.00043835,120]
[392491074,1761558643313,-500.0,0.00043835,120]
[392491075,1761558643323,-500.0,0.00043835,120]
[392491076,1761558643332,-500.0,0.00043835,120]
[392491077,1761558643348,-500.0,0.00043835,120]
[392491078,1761558643358,-500.0,0.00043835,120]
[392491079,1761558643374,-500.0,0.00043835,120]
[392491080,1761558643388,-500.0,0.00043835,120]
[392491082,1761558643397,-500.0,0.00043835,120]
[392491084,1761558643406,-500.0,0.00043835,120]
[392491086,1761558643415,-500.0,0.00043835,120]
[392491087,1761558643424,-500.0,0.00043835,120]
[392491088,1761558643433,-500.0,0.00043835,120]
[392491089,1761558643446,-500.0,0.00043835,120]
[392491090,1761558643456,-500.0,0.00043835,120]
[392491091,1761558643465,-500.0,0.00043835,120]
[392491092,1761558643475,-500.0,0.00043835,120]
[392491093,1761558643485,-500.0,0.00043835,120]
[392491094,1761558643501,-620.47,0.00043835,120]
[392491095,1761558643517,-500.0,0.00043835,120]
[392491096,1761558643527,-269.22507883,0.00043835,120]
[392491097,1761558643536,-500.0,0.00043835,120]
[392491098,1761558643546,-500.0,0.00043835,120]
[392491099,1761558643556,-500.0,0.00043835,120]
[392491100,1761558643569,-554.61161612,0.00043835,120]
[392491101,1761558643578,-536.02,0.00043835,120]
[392491102,1761558643589,-500.0,0.00043835,120]
[392491103,1761558643597,-500.0,0.00043835,120]
[392491104,1761558643610,-500.0,0.00043835,120]
[392491105,1761558643620,-519.30632387,0.00043835,120]
[392491106,1761558643630,-500.0,0.00043835,120]
[392491107,1761558643639,-500.0,0.00043835,120]
[392491108,1761558643648,-500.0,0.00043835,120]
[392491109,1761558643658,-500.0,0.00043835,120]
[392491110,1761558643667,-500.0,0.00043835,120]
[392491111,1761558643675,-500.0,0.00043835,120]
[392491112,1761558643684,-500.0,0.00043835,120]
[392491113,1761558643696,-500.0,0.00043835,120]
[392491114,1761558643705,-500.0,0.00043835,120]
[392491115,1761558643715,-500.0,0.00043835,120]
[392491116,1761558643723,-500.0,0.00043835,120]
[392491117,1761558643732,-500.0,0.00043835,120]
[392491118,1761558643741,-500.0,0.00043835,120]
[392491119,1761558643750,-500.0,0.00043835,120]
[392491120,1761558643759,-500.0,0.00043835,120]
[392491121,1761558643768,-500.0,0.00043835,120]
[392491122,1761558643776,-500.0,0.00043835,120]
[392491123,1761558643785,-500.0,0.00043835,120]
[392491124,1761558643795,-572.39224917,0.00043835,120]
[392491125,1761558643803,-500.0,0.00043835,120]
[392491126,1761558643812,-500.0,0.00043835,120]
[392491127,1761558643821,-500.0,0.00043835,120]
[392491128,1761558643830,-500.0,0.00043835,120]
[392491129,1761558643839,-560.08939504,0.00043835,120]
[392491130,1761558643848,-500.0,0.00043835,120]
[392491131,1761558643857,-507.42396478,0.00043835,120]
[392491132,1761558643866,-3246.12,0.00043835,120]
[392491133,1761558643876,-3246.12,0.00043835,120]
[392491134,1761558643885,-3246.12,0.00043835,120]
[392491135,1761558643894,-3246.12,0.00043835,120]
[392491136,1761558643903,-3246.12,0.00043835,120]
[392491137,1761558643912,-3246.12,0.00043835,120]
[392491138,1761558643921,-3246.12,0.00043835,120]
[392491139,1761558643930,-3246.12,0.00043835,120]
[392491140,1761558643941,-3246.12,0.00043835,120]
[392491141,1761558643950,-3246.12,0.00043835,120]
[392491142,1761558643959,-3246.12,0.00043835,120]
[392491143,1761558643968,-3246.12,0.00043835,120]
[392491144,1761558643977,-3246.12,0.00043835,120]
[392491145,1761558643986,-3246.12,0.00043835,120]
[392491146,1761558643999,-3246.12,0.00043835,120]
[392491147,1761558644009,-507.56560826,0.00043835,120]
[392491148,1761558644018,-518.68566928,0.00043835,120]
[392491149,1761558644027,-500.0,0.00043835,120]
[392491150,1761558644035,-1000.0,0.00043835,30]
[392491151,1761558644044,-500.0,0.00043836,120]
[392491152,1761558644053,-500.0,0.00043836,120]
[392491153,1761558644062,-500.0,0.00043836,120]
[392491154,1761558644071,-500.0,0.00043836,120]
[392491155,1761558644080,-500.0,0.00043836,120]
[392491156,1761558644089,-538.92285867,0.00043836,120]
[392491157,1761558644098,-301.02724609,0.00043836,120]
[392491158,1761558644107,-2500.0,0.00043863,14]
[392491159,1761558644117,-14263.3903226,0.00043869,3]
[392491160,1761558644126,-2500.0,0.00043872,14]
[392491161,1761558644136,-344.58701757,0.00043873,10]
[392491162,1761558644146,-500.0,0.00043873,10]
[392491163,1761558644155,-160.35304215,0.00043873,7]
[392491164,1761558644166,-500.0,0.00043873,10]
[392491165,1761558644177,-160.32640858,0.00043873,3]
[392491166,1761558644187,-502.98031178,0.00043873,10]
[392491167,1761558644200,-502.95869624,0.00043873,10]
[392491168,1761558644210,-500.0,0.00043873,10]
[392491169,1761558644221,-500.0,0.00043873,10]
[392491170,1761558644232,-501.33287028,0.00043873,10]
[392491171,1761558644243,-500.82361832,0.00043873,10]
[392491172,1761558644253,-500.0,0.00043873,10]
[392491173,1761558644265,-506.42563765,0.00043873,10]
[392491174,1761558644276,-200.0,0.00043873,10]
[392491175,1761558644286,-163.59755562,0.00043873,10]
[392491176,1761558644296,-506.12573833,0.00043873,10]
[392491177,1761558644307,-503.42247773,0.00043873,10]
[392491178,1761558644317,-18227.2054864,0.00043879,3]
[392491179,1761558644329,-1503.0,0.0004388,120]
[392491180,1761558644339,-2500.0,0.0004388,14]
[392491181,1761558644350,-2500.0,0.00043889,14]
[392491182,1761558644359,-1906.32,0.000439,7]
[392491183,1761558644371,-1000.0,0.0004395,60]
[392491184,1761558644381,-14263.3903226,0.00043989,3]
[392491185,1761558644393,-486.1312538,0.00043999,120]
[392491186,1761558644402,-3246.12,0.00043999,120]
[392491187,1761558644412,-580.71,0.00044,120]
[392491188,1761558644421,-1906.32,0.00044,7]
[392491189,1761558644431,-1906.32,0.00044,7]
[392491190,1761558644442,-1906.32,0.00044,7]
[392491191,1761558644451,-154.0,0.00044,120]
[392491192,1761558644459,-152.0,0.00044,120]
[392491193,1761558644471,-500.0,0.00044,120]
[392491194,1761558644480,-500.0,0.00044,120]
[392491195,1761558644490,-500.0,0.00044,120]
[392491196,1761558644500,-14263.3903226,0.00044088,3]
[392491197,1761558644512,-18227.2054864,0.00044098,3]
[392491198,1761558644521,-1234.42205337,0.000441,2]
[392491199,1761558644530,-3246.12,0.00044108,120]
[392491200,1761558644539,-153.7181831,0.00044156,120]
[392491201,1761558644549,-507.0,0.00044168,120]
[392491202,1761558644559,-839.78787431,0.00044178,2]
[392491203,1761558644567,-5513.0,0.000442,5]
[392491204,1761558644576,-504.81,0.000443,90]
[392491205,1761558644586,-152.0,0.00044301,6]
[392491206,1761558644598,-453.19,0.00044379,120]
[392491207,1761558644607,-161.50538848,0.00044421,10]
[392491208,1761558644618,-1000.0,0.00044421,10]
[392491209,1761558644628,-990.20715593,0.00044421,10]
[392491210,1761558644637,-839.78787431,0.00044423,2]
[392491211,1761558644647,-14263.3903226,0.00044431,3]
[392491212,1761558644657,-36454.4109727,0.00044441,3]
[392491213,1761558644666,-28526.7806451,0.00044441,3]
[392491214,1761558644676,-548.12,0.00044451,30]
[392491215,1761558644685,-150.0,0.00044451,30]
[392491216,1761558644695,-548.12,0.00044451,30]
[392491217,1761558644704,-150.0,0.00044451,30]
[392491218,1761558644713,-852.15,0.00044451,30]
[392491219,1761558644723,-1202.57,0.00044451,30]
[392491220,1761558644735,-697.12,0.00044451,30]
[392491221,1761558644745,-476.05,0.00044451,30]
[392491222,1761558644754,-150.0,0.00044451,30]
[392491223,1761558644764,-548.12,0.00044451,30]
[392491224,1761558644773,-548.12,0.00044451,30]
[392491225,1761558644782,-1202.57,0.00044451,30]
[392491226,1761558644791,-697.12,0.00044451,30]
[392491227,1761558644800,-476.05,0.00044451,30]
[392491228,1761558644810,-548.12,0.00044451,30]
[392491229,1761558644819,-697.12,0.00044451,30]
[392491230,1761558644829,-476.05,0.00044451,30]
[392491231,1761558644839,-1202.57,0.00044451,30]
[392491232,1761558644848,-548.12,0.00044451,30]
[392491233,1761558644858,-548.12,0.00044451,30]
[392491234,1761558644867,-697.12,0.00044451,30]
[392491235,1761558644877,-1202.57,0.00044451,30]
[392491236,1761558644887,-476.05,0.00044451,30]
[392491237,1761558644896,-548.12,0.00044451,30]
[392491238,1761558644905,-548.12,0.00044451,30]
[392491239,1761558644916,-697.12,0.00044451,30]
[392491240,1761558644925,-1202.57,0.00044451,30]
[392491241,1761558644934,-476.05,0.00044451,30]
[392491242,1761558644946,-548.12,0.00044451,30]
[392491243,1761558644956,-548.12,0.00044451,30]
[392491244,1761558644965,-697.12,0.00044451,30]
[392491245,1761558644975,-1202.57,0.00044451,30]
[392491246,1761558644984,-476.05,0.00044451,30]
[392491247,1761558644993,-548.12,0.00044451,30]
[392491248,1761558645003,-548.12,0.00044451,30]
[392491249,1761558645012,-697.12,0.00044451,30]
[392491250,1761558645021,-476.05,0.00044451,30]
[392491251,1761558645030,-1202.57,0.00044451,30]
[392491252,1761558645040,-548.12,0.00044451,30]
[392491253,1761558645050,-548.12,0.00044451,30]
[392491254,1761558645059,-697.12,0.00044451,30]
[392491255,1761558645068,-476.05,0.00044451,30]
[392491256,1761558645077,-1202.57,0.00044451,30]
[392491257,1761558645086,-548.12,0.00044451,30]
[392491258,1761558645095,-548.12,0.00044451,30]
[392491259,1761558645104,-476.05,0.00044451,30]
[392491260,1761558645114,-1202.57,0.00044451,30]
[392491261,1761558645123,-697.12,0.00044451,30]
[392491262,1761558645131,-548.12,0.00044451,30]
[392491263,1761558645140,-548.12,0.00044451,30]
[392491264,1761558645150,-476.05,0.00044451,30]
[392491265,1761558645159,-697.12,0.00044451,30]
[392491266,1761558645168,-548.12,0.00044451,30]
[392491267,1761558645178,-697.12,0.00044451,30]
[392491268,1761558645197,-548.12,0.00044451,30]
[392491269,1761558645207,-548.12,0.00044451,30]
[392491270,1761558645216,-476.05,0.00044451,30]
[392491271,1761558645225,-697.12,0.00044451,30]
[392491272,1761558645234,-548.12,0.00044451,30]
[392491273,1761558645243,-548.12,0.00044451,30]
[392491274,1761558645252,-476.05,0.00044451,30]
[392491275,1761558645261,-548.12,0.00044451,30]
[392491276,1761558645271,-1076.03,0.00044451,30]
[392491277,1761558645280,-476.05,0.00044451,30]
[392491278,1761558645289,-476.05,0.00044451,30]
[392491279,1761558645299,-476.05,0.00044451,30]
[392491280,1761558645308,-414.6,0.00044451,30]
[392491281,1761558645317,-1189.34,0.00044451,30]
[392491282,1761558645327,-476.05,0.00044451,30]
[392491283,1761558645464,-322.28,0.00044451,30]
[392491284,1761558645473,-150.0,0.00044451,30]
[392491285,1761558645483,-476.05,0.00044451,30]
[392491286,1761558645494,-476.05,0.00044451,30]
[392491287,1761558645503,-150.0,0.00044451,30]
[392491288,1761558645513,-1352.98,0.00044451,30]
[392491289,1761558645522,-1200.82,0.00044451,30]
[392491290,1761558645531,-150.55,0.00044451,30]
[392491291,1761558645541,-200.0,0.00044473,10]
[392491292,1761558645550,-166.88242647,0.00044478,15]
[392491293,1761558645559,-14263.3903226,0.00044578,3]
[392491294,1761558645571,-18227.2054864,0.00044588,3]
[392491295,1761558645581,-14263.3903226,0.00044588,3]
[392491296,1761558645590,-14589.46092092,0.00044588,120]
[392491297,1761558645599,-14263.3903226,0.00044597,3]
[392491298,1761558645608,-18227.2054864,0.00044598,3]
[392491299,1761558645617,-14263.3903226,0.00044599,3]
[392491300,1761558645626,-150.0,0.00044602,30]
[392491301,1761558645635,-414.6,0.00044602,30]
[392491302,1761558645644,-150.0,0.00044602,30]
[392491303,1761558645654,-300.0,0.00044602,30]
[392491304,1761558645663,-829.2,0.00044602,30]
[392491305,1761558645672,-300.0,0.00044602,30]
[392491306,1761558645681,-300.0,0.00044602,30]
[392491307,1761558645692,-829.34,0.00044602,30]
[392491308,1761558645701,-167.37,0.00044602,30]
[392491309,1761558645710,-1394.24,0.00044602,30]
[392491310,1761558645719,-476.05,0.00044602,30]
[392491311,1761558645730,-150.0,0.00044602,30]
[392491312,1761558645739,-168.52,0.00044602,30]
[392491313,1761558645752,-476.05,0.00044602,30]
[392491314,1761558645761,-476.05,0.00044602,30]
[392491315,1761558645770,-150.0,0.00044602,30]
[392491316,1761558645779,-150.0,0.00044602,30]
[392491317,1761558645788,-150.0,0.00044602,30]
[392491318,1761558645798,-150.0,0.00044602,30]
[392491319,1761558645807,-150.0,0.00044602,30]
[392491320,1761558645817,-476.05,0.00044602,30]
[392491321,1761558645826,-1394.24,0.00044602,30]
[392491322,1761558645836,-414.74,0.00044602,30]
[392491323,1761558645844,-150.0,0.00044602,30]
[392491324,1761558645853,-150.0,0.00044602,30]
[392491325,1761558645863,-150.0,0.00044602,30]
[392491326,1761558645872,-414.74,0.00044602,30]
[392491327,1761558645881,-476.05,0.00044602,30]
[392491328,1761558645892,-414.74,0.00044602,30]
[392491329,1761558645902,-150.0,0.00044602,30]
[392491330,1761558645911,-476.05,0.00044602,30]
[392491331,1761558645921,-150.0,0.00044602,30]
[392491332,1761558645930,-476.05,0.00044602,30]
[392491333,1761558645939,-414.74,0.00044602,30]
[392491334,1761558645949,-476.05,0.00044602,30]
[392491335,1761558645958,-915.58,0.00044602,30]
[392491336,1761558645967,-150.0,0.00044602,30]
[392491337,1761558645978,-413.9,0.00044602,30]
[392491338,1761558645987,-476.05,0.00044602,30]
[392491339,1761558645996,-150.0,0.00044602,30]
[392491340,1761558646005,-150.0,0.00044602,30]
[392491341,1761558646015,-150.0,0.00044602,30]
[392491342,1761558646024,-150.0,0.00044602,30]
[392491343,1761558646033,-300.0,0.00044602,30]
[392491344,1761558646045,-150.0,0.00044605,30]
[392491345,1761558646054,-150.0,0.00044605,30]
[392491346,1761558646063,-414.74,0.00044605,30]
[392491347,1761558646072,-1052.56,0.00044605,30]
[392491348,1761558646082,-414.74,0.00044605,30]
[392491349,1761558646091,-828.78,0.00044605,30]
[392491350,1761558646100,-1412.63,0.00044605,30]
[392491351,1761558646109,-150.0,0.00044605,30]
[392491352,1761558646119,-966.06,0.00044605,30]
[392491353,1761558646128,-150.0,0.00044605,30]
[392491354,1761558646137,-150.0,0.00044605,30]
[392491355,1761558646146,-150.0,0.00044605,30]
[392491356,1761558646155,-223.06,0.00044605,30]
[392491357,1761558646164,-300.0,0.00044605,30]
[392491358,1761558646173,-300.0,0.00044605,30]
[392491359,1761558646182,-829.34,0.00044605,30]
[392491360,1761558646194,-697.12,0.00044605,30]
[392491361,1761558646202,-476.05,0.00044605,30]
[392491362,1761558646211,-697.12,0.00044605,30]
[392491363,1761558646220,-697.12,0.00044605,30]
[392491364,1761558646230,-1515.43451734,0.00044607,60]
[392491365,1761558646240,-500.0,0.00044608,120]
[392491366,1761558646249,-500.0,0.00044608,120]
[392491367,1761558646259,-273.78625073,0.00044608,120]
[392491368,1761558646268,-500.0,0.00044608,120]
[392491369,1761558646278,-500.0,0.00044608,120]
[392491370,1761558646288,-500.0,0.00044608,120]
[392491371,1761558646297,-5670.318744,0.00044608,120]
[392491372,1761558646306,-520.716512,0.00044608,120]
[392491373,1761558646315,-1246.60364,0.00044608,120]
[392491374,1761558646325,-509.393433,0.00044608,120]
[392491375,1761558646335,-2171.954392,0.00044608,120]
[392491376,1761558646345,-344.658208,0.00044608,120]
[392491377,1761558646355,-3416.0,0.00044609,2]
[392491378,1761558646364,-573.0,0.00044609,2]
[392491379,1761558646373,-2055.0,0.00044609,2]
[392491380,1761558646382,-820.0,0.00044609,2]
[392491381,1761558646392,-1593.0,0.00044609,2]
[392491383,1761558646401,-606.0,0.00044609,2]
[392491384,1761558646410,-1313.0,0.00044609,2]
[392491385,1761558646419,-818.0,0.00044609,2]
[392491386,1761558646429,-1270.0,0.00044609,2]
[392491387,1761558646438,-6587.0,0.00044609,2]
[392491388,1761558646451,-558.0,0.00044609,2]
[392491390,1761558646461,-3490.0,0.00044609,2]
[392491392,1761558646470,-4824.871,0.00044609,2]
[392491393,1761558646479,-151.70421363,0.0004461,120]
[392491394,1761558646490,-153.7181831,0.00044662,120]
[392491395,1761558646500,-500.0,0.00044804,120]
[392491396,1761558646511,-2000.0,0.00044804,120]
[392491397,1761558646520,-500.0,0.00044804,120]